bitfinex/quotes_SOLUSD_20260220
["timestamp","ask_amount","ask_price","bid_price","bid_amount"]
[1771620540925,11.78189358,84.876,84.82,4.27023381]
[1771620540926,1.95644361,84.859,84.82,4.27023381]
[1771620541131,1.95644361,84.849,84.819,11.7896917]
[1771620541332,1.95644361,84.849,84.82,1.97433815]
[1771620541638,1.95644361,84.859,84.821,1.97433815]
[1771620543455,1.95644361,84.857,84.823,1.97433815]
[1771620543845,4.27023381,84.85,84.823,1.97433815]
[1771620544053,1.95644361,84.849,84.823,1.97433815]
[1771620544846,11.78119956,84.881,84.841,1.97433815]
[1771620545030,11.78119956,84.881,84.822,41.26287991]
[1771620545031,1.95644361,84.884,84.851,1.97433815]
[1771620545547,1.95644361,84.879,84.853,1.97433815]
[1771620546640,1.86512108,84.877,84.855,1.94197594]
[1771620546846,1.86512108,84.877,84.842,29.46641258]
[1771620546847,1.86512108,84.877,84.849,11.78551121]
[1771620547051,1.86512108,84.869,84.843,11.78635258]
[1771620547552,4.27023381,84.86,84.839,11.78701326]
[1771620547861,1.86721899,84.859,84.839,11.78701326]
[1771620549452,4.27023381,84.88,84.812,1.91664285]
[1771620549453,4.27023381,84.85,84.812,1.91664285]
[1771620549643,11.78439275,84.858,84.812,1.91664285]
[1771620549644,1.86721899,84.839,84.812,1.91664285]
[1771620549846,1.86721899,84.829,84.791,1.91664285]
[1771620550353,1.86721899,84.829,84.792,1.91664285]
[1771620550652,1.86721899,84.819,84.791,11.79370452]
[1771620551040,1.86721899,84.817,84.791,11.79370452]
[1771620551653,1.86721899,84.817,84.792,1.91664285]
[1771620554158,1.86721899,84.817,84.793,11.79342634]
[1771620557065,1.86721899,84.817,84.795,11.79314818]
[1771620557847,4.27023381,84.81,84.79,0.2]
[1771620558247,4.27023381,84.81,84.791,2.00315948]
[1771620559769,16.06137898,84.81,84.791,2.00315948]
[1771620560964,16.06137898,84.81,84.79,0.2]
[1771620561464,11.78981124,84.819,84.791,2.00315948]
[1771620562054,11.78981124,84.819,84.793,2.00315948]
[1771620562363,11.7870319,84.839,84.801,2.00315948]
[1771620562770,4.27023381,84.83,84.801,2.00315948]
[1771620563565,16.05860882,84.83,84.802,11.79217471]
[1771620563763,16.05860882,84.83,84.803,2.00315948]
[1771620564471,16.05860882,84.83,84.802,11.79217471]
[1771620565166,16.05860882,84.83,84.802,13.79533419]
[1771620565563,4.27023381,84.82,84.792,2.00315948]
[1771620567464,4.27023381,84.82,84.78,4.47023381]
[1771620567465,1.58400713,84.797,84.76,0.2]
[1771620567671,1.58400713,84.779,84.76,0.2]
[1771620567870,1.58400713,84.769,84.74,0.2]
[1771620568973,1.58400713,84.769,84.741,11.80053478]
[1771620569470,1.58400713,84.769,84.74,0.2]
[1771620569471,1.58400713,84.769,84.744,11.80017632]
[1771620569672,1.3842597,84.759,84.73,0.2]
[1771620569860,1.1842597,84.749,84.73,0.2]
[1771620570276,4.27023381,84.77,84.741,1.91664285]
[1771620570762,1.1846821,84.774,84.741,1.91664285]
[1771620571472,1.1846821,84.774,84.743,1.91664285]
[1771620571674,4.27023381,84.78,84.743,1.91664285]
[1771620571881,1.18509286,84.782,84.742,11.80052394]
[1771620571882,1.18509286,84.789,84.751,1.91664285]
[1771620573290,1.18591628,84.769,84.738,11.80101167]
[1771620573464,11.79420579,84.788,84.73,29.70516729]
[1771620573465,1.18591628,84.749,84.73,0.2]
[1771620574378,1.18591628,84.749,84.731,11.80205591]
[1771620574577,1.18591628,84.749,84.73,0.2]
[1771620575374,3.69383402,84.781,84.73,0.2]
[1771620575375,1.18675543,84.769,84.732,1.91664285]
[1771620576674,1.18675543,84.769,84.731,11.80205591]
[1771620576675,11.7959796,84.775,84.741,1.91664285]
[1771620576873,100.26828185,84.839,84.733,41.3062207]
[1771620576874,1.18714478,84.789,84.751,1.91664285]
[1771620577080,1.18752556,84.797,84.761,1.91664285]
[1771620578573,1.18752556,84.797,84.763,1.84989793]
[1771620578788,12.98127817,84.796,84.763,1.84989793]
[1771620580266,1.18900248,84.795,84.763,1.84989793]
[1771620583158,4.28042232,84.79,84.764,11.79746118]
[1771620583384,4.28042232,84.79,84.765,1.84989793]
[1771620583571,5.47050184,84.79,84.765,1.84989793]
[1771620583766,1.19007952,84.789,84.765,1.84989793]
[1771620584163,1.1904294,84.779,84.751,11.7992708]
[1771620584582,1.1904294,84.779,84.752,1.84989793]
[1771620585460,1.1904294,84.779,84.753,11.79899236]
[1771620586084,1.1904294,84.779,84.753,13.64889029]
[1771620587681,1.1904294,84.779,84.754,1.84989793]
[1771620587994,1.19176507,84.777,84.754,1.84989793]
[1771620590888,1.19176507,84.777,84.754,1.84989793]
[1771620592885,1.19176507,84.777,84.755,11.79871394]
[1771620593777,1.19176507,84.777,84.755,13.64861187]
[1771620595774,4.28042232,84.78,84.75,11.79936122]
[1771620595775,1.1939834,84.769,84.75,11.79936122]
[1771620596391,1.1939834,84.769,84.75,13.64925915]
[1771620597276,1.19457105,84.759,84.735,1.84989793]
[1771620598496,1.19457105,84.759,84.737,1.84989793]
[1771620598995,4.28042232,84.77,84.741,1.84989793]
[1771620599175,1.19516442,84.779,84.741,1.84989793]
[1771620600289,1.19544686,84.805,84.761,1.84989793]
[1771620600493,1.19544686,84.811,84.782,1.84989793]
[1771620600788,1.19544686,84.839,84.801,1.84989793]
[1771620601095,1.19571292,84.829,84.801,1.84989793]
[1771620601593,1.19571292,84.839,84.801,1.84989793]
[1771620602176,1.19600193,84.846,84.811,1.84989793]
[1771620602691,12.98220029,84.845,84.813,1.84989793]
[1771620602898,1.19625911,84.844,84.813,1.84989793]
[1771620603101,4.28042232,84.84,84.813,1.84989793]
[1771620603302,1.19625911,84.839,84.806,1.84989793]
[1771620603594,4.28042232,84.83,84.806,1.84989793]
[1771620604184,1.19651916,84.829,84.806,1.84989793]
[1771620604386,4.28042232,84.83,84.806,1.84989793]
[1771620604778,11.78758767,84.835,84.806,1.84989793]
[1771620605191,12.98437851,84.835,84.806,1.84989793]
[1771620605498,12.98437851,84.835,84.807,1.84989793]
[1771620606500,11.78598686,84.847,84.811,1.84989793]
[1771620606693,1.19704081,84.846,84.811,1.84989793]
[1771620607001,5.47799396,84.84,84.811,1.84989793]
[1771620607502,11.78598686,84.847,84.811,1.84989793]
[1771620607799,4.28042232,84.84,84.811,1.84989793]
[1771620608204,1.1980444,84.829,84.795,13.60155983]
[1771620608401,1.1980444,84.819,84.795,1.80841931]
[1771620608699,1.1980444,84.818,84.795,1.80841931]
[1771620609676,4.28042232,84.82,84.797,1.80841931]
[1771620609877,1.19854395,84.833,84.801,1.80841931]
[1771620610096,12.98446448,84.847,84.811,1.80841931]
[1771620610487,1.19854395,84.846,84.811,1.80841931]
[1771620610993,4.28042232,84.84,84.813,1.80841931]
[1771620611384,1.19876915,84.829,84.804,1.80841931]
[1771620611798,1.19876915,84.829,84.797,1.80841931]
[1771620612102,1.19900363,84.819,84.794,11.79320106]
[1771620612593,1.19900363,84.809,84.773,1.80841931]
[1771620612803,1.19900363,84.809,84.774,1.80841931]
[1771620614107,12.99022576,84.809,84.776,1.80841931]
[1771620615111,1.1997298,84.816,84.781,1.80841931]
[1771620616507,1.19996982,84.824,84.791,1.80841931]
[1771620616809,11.78842141,84.829,84.801,1.80841931]
[1771620617108,12.98860333,84.829,84.801,1.80841931]
[1771620617310,1.20018192,84.828,84.801,1.80841931]
[1771620617807,11.78783057,84.834,84.801,1.80841931]
[1771620618512,11.45435108,84.83,84.801,1.80841931]
[1771620618716,11.78842141,84.829,84.803,1.80841931]
[1771620621303,1.20100374,84.828,84.798,11.79266873]
[1771620621512,1.20100374,84.819,84.79,1.80841931]
[1771620622609,1.20119759,84.809,84.783,1.80841931]
[1771620624006,11.79134043,84.808,84.784,11.79467824]
[1771620624314,1.20161797,84.807,84.774,11.79599625]
[1771620624621,1.20161797,84.799,84.771,1.80841931]
[1771620626121,11.79273096,84.798,84.773,1.80841931]
[1771620626826,1.20221435,84.797,84.773,1.80841931]
[1771620627712,1.20221435,84.789,84.731,1.80841931]
[1771620627918,1.20221435,84.779,84.741,1.80841931]
[1771620628297,1.20241355,84.769,84.731,1.80841931]
[1771620628617,11.45435108,84.76,84.732,1.80841931]
[1771620629728,1.20263338,84.759,84.732,1.80841931]
[1771620630408,11.79829632,84.758,84.732,1.80841931]
[1771620630905,1.20263338,84.759,84.734,1.80841931]
[1771620631102,13.00083541,84.759,84.734,1.80841931]
[1771620635428,1.20374326,84.765,84.736,1.80841931]
[1771620635635,11.79634785,84.772,84.736,1.80841931]
[1771620635833,11.47224425,84.77,84.741,1.80841931]
[1771620636330,11.79537385,84.779,84.751,1.80841931]
[1771620636631,1.20392616,84.759,84.731,11.80201641]
[1771620637738,1.20430891,84.757,84.731,11.80201641]
[1771620639827,1.20489659,84.755,84.731,11.80201641]
[1771620640032,1.20489659,84.749,84.73,0.2]
[1771620642632,11.47224425,84.75,84.73,2.12795188]
[1771620642939,11.79857473,84.756,84.73,2.12795188]
[1771620644814,1.20581438,84.749,84.73,0.2]
[1771620646637,11.47224425,84.74,84.73,0.2]
[1771620647034,11.80094171,84.739,84.73,0.2]
[1771620647638,11.8002975,84.744,84.73,0.2]
[1771620647837,1.20617558,84.757,84.73,2.12795188]
[1771620648065,11.47224425,84.75,84.73,2.12795188]
[1771620650541,11.79954925,84.749,84.73,2.12795188]
[1771620652330,11.79954925,84.749,84.73,0.2]
[1771620652331,1.20700528,84.748,84.73,0.2]
[1771620653936,1.2073198,84.746,84.73,0.2]
[1771620656546,11.8001062,84.745,84.73,0.2]
[1771620659653,1.20805649,84.745,84.73,0.2]
[1771620660951,1.20834252,84.739,84.71,0.2]
[1771620661136,1.20834252,84.739,84.71,2.12795188]
[1771620661952,1.20834252,84.739,84.715,1.92795188]
[1771620662159,1.20850187,84.729,84.7,0.2]
[1771620662349,4.28474136,84.71,84.7,0.2]
[1771620662736,1.00850187,84.714,84.7,0.2]
[1771620662935,5.29356344,84.72,84.7,0.2]
[1771620663337,1.00882208,84.709,84.69,0.2]
[1771620663537,1.00882208,84.699,84.675,1.92795188]
[1771620663739,4.28474136,84.69,84.675,1.92795188]
[1771620663964,4.28474136,84.69,84.668,1.92795188]
[1771620664134,4.28474136,84.68,84.661,1.92795188]
[1771620664336,4.28474136,84.68,84.66,0.2]
[1771620664337,5.29386257,84.68,84.66,0.2]
[1771620664546,1.00912121,84.679,84.66,0.2]
[1771620664744,41.32731058,84.69,84.65,0.2]
[1771620664745,5.29386257,84.67,84.65,0.2]
[1771620664958,1.00912121,84.669,84.65,0.2]
[1771620665254,1.00912121,84.669,84.64,0.2]
[1771620665255,1.00942141,84.659,84.64,0.2]
[1771620665555,1.00942141,84.669,84.64,0.2]
[1771620665748,3.69383402,84.683,84.64,0.2]
[1771620665749,1.00942141,84.659,84.64,0.2]
[1771620666159,12.82196079,84.658,84.64,0.2]
[1771620666658,1.00972805,84.657,84.64,0.2]
[1771620666953,4.28474136,84.65,84.631,1.92795188]
[1771620667144,1.01033684,84.649,84.63,0.2]
[1771620667338,4.28474136,84.64,84.63,0.2]
[1771620667842,4.28474136,84.64,84.621,1.92080148]
[1771620668247,4.28474136,84.63,84.613,1.92080148]
[1771620668659,4.28474136,84.64,84.614,13.73917668]
[1771620668956,4.28474136,84.64,84.615,1.92080148]
[1771620669655,11.81377174,84.647,84.615,1.92080148]
[1771620670256,1.01155497,84.639,84.603,1.92080148]
[1771620670755,11.81377174,84.647,84.603,1.92080148]
[1771620670756,4.28474136,84.63,84.603,1.92080148]
[1771620671154,1.01186773,84.629,84.603,1.92080148]
[1771620671968,1.01186773,84.629,84.605,1.92080148]
[1771620672264,3.69383402,84.661,84.59,1.92080148]
[1771620672265,1.01214986,84.619,84.59,1.92080148]
[1771620672448,4.28474136,84.6,84.583,1.92080148]
[1771620672649,1.01214986,84.609,84.583,1.92080148]
[1771620673372,4.28474136,84.62,84.583,1.92080148]
[1771620673677,3.69383402,84.641,84.581,11.82298624]
[1771620673678,4.28474136,84.63,84.591,1.92080148]
[1771620673845,4.28474136,84.64,84.603,1.92080148]
[1771620674937,11.81418647,84.644,84.611,1.92080148]
[1771620675363,16.09810228,84.65,84.611,1.92080148]
[1771620675966,11.50144649,84.66,84.621,1.92080148]
[1771620676145,23.31349209,84.66,84.621,1.92080148]
[1771620676340,11.50144649,84.66,84.621,1.92080148]
[1771620676661,11.50144649,84.66,84.631,1.92080148]
[1771620677363,1.01353793,84.658,84.621,1.92080148]
[1771620678456,1.01353793,84.658,84.59,5.36086188]
[1771620678457,11.81141459,84.664,84.631,1.92080148]
[1771620679051,11.81087263,84.668,84.64,11.50144649]
[1771620679257,11.81087263,84.668,84.641,1.92080148]
[1771620679766,133.92317798,84.68,84.641,1.92080148]
[1771620679767,11.81002627,84.674,84.641,1.92080148]
[1771620679977,11.80944866,84.678,84.651,1.92080148]
[1771620680174,11.50144649,84.68,84.651,1.92080148]
[1771620680551,11.80867548,84.684,84.653,1.92080148]
[1771620681047,11.50144649,84.68,84.653,1.92080148]
[1771620681259,11.80867548,84.684,84.586,47.28882099]
[1771620681260,1.01458851,84.669,84.631,1.92080148]
[1771620681460,11.50144649,84.66,84.631,11.81600122]
[1771620681666,11.50144649,84.67,84.641,1.92080148]
[1771620682968,11.50144649,84.67,84.643,1.92080148]
[1771620683172,11.50144649,84.68,84.643,1.92080148]
[1771620684869,1.0155907,84.679,84.643,1.92080148]
[1771620685067,12.82641985,84.669,84.643,1.92080148]
[1771620685266,11.81082915,84.669,84.643,1.92080148]
[1771620685465,1.0155907,84.659,84.575,59.11912503]
[1771620685774,1.93578324,84.638,84.6,11.50144649]
[1771620686075,11.50144649,84.64,84.61,11.50144649]
[1771620686257,1.93578324,84.646,84.61,11.50144649]
[1771620686458,11.50144649,84.64,84.61,11.50144649]
[1771620686677,11.50144649,84.64,84.6,11.50144649]
[1771620687461,11.50144649,84.64,84.601,43.29147085]
[1771620687759,11.50144649,84.64,84.602,1.92080148]
[1771620688367,11.50144649,84.62,84.595,11.82098222]
[1771620688570,13.43722973,84.62,84.595,11.82098222]
[1771620689170,13.43722973,84.62,84.596,1.92080148]
[1771620689471,11.81488439,84.639,84.596,1.92080148]
[1771620689472,11.50144649,84.63,84.596,1.92080148]
[1771620689663,11.50144649,84.63,84.595,41.37355624]
[1771620689664,11.81496552,84.639,84.601,1.92080148]
[1771620691378,13.75074876,84.639,84.601,1.92080148]
[1771620691769,1.93578324,84.638,84.603,1.92080148]
[1771620693872,1.93578324,84.629,84.604,11.81977211]
[1771620698886,4.29658601,84.62,84.588,1.95454193]
[1771620699074,1.96168221,84.622,84.591,1.95454193]
[1771620699791,1.96168221,84.629,84.591,1.95454193]
[1771620700866,4.29658601,84.64,84.601,1.95454193]
[1771620701071,11.81488439,84.639,84.601,1.95454193]
[1771620701577,13.7765666,84.639,84.601,1.95454193]
[1771620702183,1.96168221,84.638,84.603,1.95454193]
[1771620705069,4.29658601,84.65,84.611,1.95454193]
[1771620705362,1.96168221,84.649,84.611,1.95454193]
[1771620705582,4.29658601,84.64,84.611,1.95454193]
[1771620705884,1.96168221,84.639,84.611,1.95454193]
[1771620706266,1.96168221,84.639,84.612,11.81865456]
[1771620708786,1.96168221,84.639,84.613,1.95454193]
[1771620710473,1.96168221,84.656,84.614,41.36431322]
[1771620710674,4.29658601,84.65,84.615,1.95454193]
[1771620710985,1.96168221,84.649,84.615,1.95454193]
[1771620711181,1.96168221,84.658,84.615,1.95454193]
[1771620711387,1.96168221,84.649,84.621,1.95454193]
[1771620712588,1.96168221,84.663,84.623,1.95454193]
[1771620712796,1.96168221,84.663,84.631,1.95454193]
[1771620713588,1.96168221,84.669,84.631,1.95454193]
[1771620713797,1.96168221,84.669,84.641,1.95454193]
[1771620713977,1.96168221,84.677,84.641,1.95454193]
[1771620714277,1.96168221,84.669,84.641,1.95454193]
[1771620715180,1.96168221,84.669,84.642,11.81446563]
[1771620715894,1.96168221,84.669,84.642,13.76900756]
[1771620716292,1.96168221,84.659,84.62,1.95454193]
[1771620716592,1.96168221,84.659,84.622,1.95454193]
[1771620717383,1.96168221,84.657,84.624,1.95454193]
[1771620718597,11.81251181,84.656,84.625,11.81683899]
[1771620718797,1.96168221,84.655,84.625,11.81683899]
[1771620719291,1.96168221,84.655,84.625,13.77138092]
[1771620720898,1.96168221,84.639,84.611,1.95454193]
[1771620722497,1.96168221,84.639,84.611,13.77333617]
[1771620724500,1.96168221,84.639,84.612,1.95454193]
[1771620725586,1.96168221,84.649,84.612,1.95454193]
[1771620726604,1.96168221,84.649,84.602,29.54985451]
[1771620726605,1.96168221,84.647,84.614,1.95454193]
[1771620728487,1.85096555,84.639,84.602,1.87576522]
[1771620728686,4.29658601,84.64,84.602,1.87576522]
[1771620728687,1.85096555,84.637,84.603,11.81991182]
[1771620729008,4.29658601,84.64,84.604,1.87576522]
[1771620729185,6.14755156,84.65,84.611,1.87576522]
[1771620729389,1.85096555,84.649,84.611,1.87576522]
[1771620730499,1.85096555,84.649,84.621,1.87576522]
[1771620730904,1.85096555,84.649,84.62,4.29658601]
[1771620730905,1.85096555,84.649,84.623,1.87576522]
[1771620731090,1.85096555,84.649,84.622,13.69302314]
[1771620731588,1.85096555,84.647,84.614,1.87576522]
[1771620731794,1.85096555,84.639,84.614,1.87576522]
[1771620735308,1.85096555,84.639,84.615,11.81823553]
[1771620737107,1.85096555,84.639,84.616,1.87576522]
[1771620737304,1.85096555,84.639,84.618,1.87576522]
[1771620740223,11.81502398,84.638,84.618,1.87576522]
[1771620741004,1.85096555,84.639,84.619,11.81767688]
[1771620741315,1.85096555,84.639,84.619,13.6934421]
[1771620742022,1.85096555,84.638,84.619,13.6934421]
[1771620742330,1.85096555,84.638,84.619,1.87576522]
[1771620743717,1.85096555,84.636,84.615,0.7098]
[1771620744012,1.85096555,84.629,84.615,0.7098]
[1771620746018,1.85096555,84.636,84.615,0.7098]
[1771620746420,1.85096555,84.655,84.616,1.87576522]
[1771620747019,4.29658601,84.65,84.617,1.87576522]
[1771620747313,1.85096555,84.654,84.617,1.87576522]
[1771620747814,1.85096555,84.654,84.62,4.29658601]
[1771620748001,1.85096555,84.654,84.621,1.87576522]
[1771620748519,11.81293043,84.653,84.622,11.81725792]
[1771620748818,1.85096555,84.652,84.623,1.87576522]
[1771620749903,1.85096555,84.649,84.623,1.87576522]
[1771620750815,1.85096555,84.649,84.624,11.81697863]
[1771620751422,1.85096555,84.649,84.624,13.69274385]
[1771620752229,1.85096555,84.655,84.625,1.87576522]
[1771620752705,3.69383402,84.681,84.62,4.29658601]
[1771620752706,1.85096555,84.663,84.627,1.87576522]
[1771620752906,1.85096555,84.673,84.631,1.87576522]
[1771620753831,1.85096555,84.669,84.631,1.87576522]
[1771620754026,1.85096555,84.659,84.631,1.87576522]
[1771620754724,11.81014018,84.673,84.617,1.87576522]
[1771620754725,1.85096555,84.649,84.617,1.87576522]
[1771620754905,1.85096555,84.639,84.601,1.87576522]
[1771620756018,1.85096555,84.639,84.606,1.87576522]
[1771620756828,1.85096555,84.637,84.606,1.87576522]
[1771620758224,13.79460145,84.642,84.608,1.94258358]
[1771620758528,11.81453935,84.642,84.608,1.94258358]
[1771620759115,1.9800621,84.639,84.608,1.94258358]
[1771620760428,104.4,84.669,84.606,0.7098]
[1771620760429,1.9800621,84.629,84.606,0.7098]
[1771620760933,1.9800621,84.629,84.607,13.76193658]
[1771620761930,1.9800621,84.629,84.607,11.819353]
[1771620762227,1.9800621,84.646,84.611,1.94258358]
[1771620762535,11.81406927,84.645,84.613,1.94258358]
[1771620762915,13.79413137,84.645,84.613,1.94258358]
[1771620763627,1.9800621,84.644,84.613,1.94258358]
[1771620766035,1.9800621,84.639,84.614,11.8183752]
[1771620767334,1.9800621,84.639,84.601,11.82019125]
[1771620767538,1.9800621,84.629,84.602,1.94258358]
[1771620769654,1.9800621,84.629,84.604,1.94258358]
[1771620770014,11.81376927,84.647,84.611,1.94258358]
[1771620770438,13.79383137,84.647,84.611,1.94258358]
[1771620770837,11.81376927,84.647,84.611,1.94258358]
[1771620771015,1.9800621,84.652,84.621,1.94258358]
[1771620772217,1.9800621,84.658,84.623,1.94258358]
[1771620774930,1.9800621,84.656,84.625,1.94258358]
[1771620780658,1.9800621,84.629,84.607,1.94258358]
[1771620780823,1.9800621,84.639,84.607,1.94258358]
[1771620781219,1.9800621,84.639,84.606,41.36822446]
[1771620781220,1.9800621,84.639,84.625,0.7098]
[1771620782237,1.9800621,84.639,84.612,1.94258358]
[1771620782548,1.9800621,84.637,84.609,1.94258358]
[1771620784549,1.9800621,84.637,84.608,11.81921331]
[1771620784550,1.9800621,84.637,84.61,11.81893393]
[1771620784748,1.9800621,84.637,84.611,1.94258358]
[1771620785653,1.9800621,84.637,84.612,11.81865456]
[1771620787442,1.94544356,84.629,84.596,1.9837821]
[1771620788640,1.94544356,84.629,84.597,1.9837821]
[1771620789566,1.94544356,84.629,84.599,1.9837821]
[1771620790341,4.29541305,84.65,84.611,1.9837821]
[1771620790536,1.94544356,84.649,84.611,1.9837821]
[1771620790756,4.29541305,84.65,84.611,1.9837821]
[1771620790964,11.81302101,84.653,84.621,1.9837821]
[1771620791851,11.81302101,84.653,84.623,1.9837821]
[1771620792255,1.94544356,84.656,84.623,1.9837821]
[1771620792557,1.94544356,84.654,84.623,1.9837821]
[1771620792765,1.94544356,84.661,84.623,1.9837821]
[1771620792944,1.94544356,84.661,84.631,1.9837821]
[1771620793845,11.81104886,84.667,84.633,1.9837821]
[1771620794044,1.94544356,84.669,84.633,1.9837821]
[1771620794562,13.75614169,84.669,84.633,1.9837821]
[1771620794861,11.81069813,84.669,84.633,1.9837821]
[1771620795075,1.94544356,84.668,84.633,1.9837821]
[1771620795872,1.94544356,84.666,84.635,1.9837821]
[1771620796048,1.94544356,84.659,84.635,1.9837821]
[1771620797248,4.29541305,84.66,84.624,1.9837821]
[1771620797249,1.94544356,84.657,84.624,1.9837821]
[1771620799067,1.94544356,84.657,84.625,1.9837821]
[1771620799565,6.24085661,84.65,84.627,1.9837821]
[1771620800267,4.29541305,84.65,84.627,1.9837821]
[1771620800469,1.94544356,84.649,84.627,1.9837821]
[1771620801368,1.94544356,84.649,84.624,0.7098]
[1771620801974,1.94544356,84.649,84.625,11.81683899]
[1771620806371,11.8136282,84.648,84.625,11.81683899]
[1771620806558,1.94544356,84.647,84.625,11.81683899]
[1771620808371,1.94544356,84.639,84.624,0.7098]
[1771620808774,1.94544356,84.629,84.596,1.9837821]
[1771620809764,1.94544356,84.628,84.598,1.9837821]
[1771620810061,1.94544356,84.619,84.597,11.82075014]
[1771620810574,1.94544356,84.619,84.598,1.9837821]
[1771620813583,4.29541305,84.63,84.6,1.9837821]
[1771620813877,1.94544356,84.637,84.601,1.9837821]
[1771620814564,1.94544356,84.635,84.603,1.9837821]
[1771620816079,1.94544356,84.633,84.605,1.9837821]
[1771620817482,1.94544356,84.633,84.607,1.98014607]
[1771620817882,1.88264158,84.631,84.607,1.98014607]
[1771620818279,11.81586161,84.632,84.607,1.98014607]
[1771620818486,13.69850319,84.632,84.607,1.98014607]
[1771620820864,1.88264158,84.629,84.607,1.98014607]
[1771620821361,41.35209536,84.639,84.602,1.98014607]
[1771620821562,4.29593878,84.63,84.602,1.98014607]
[1771620822586,1.88264158,84.628,84.604,1.98014607]
[1771620824490,1.88264158,84.619,84.572,1.98014607]
[1771620825574,1.88264158,84.619,84.573,1.98014607]
[1771620826197,1.88264158,84.619,84.581,1.98014607]
[1771620827200,13.6996841,84.624,84.583,1.98014607]
[1771620827407,1.88264158,84.623,84.583,1.98014607]
[1771620827602,1.88264158,84.632,84.591,1.98014607]
[1771620827782,11.81604347,84.631,84.591,1.98014607]
[1771620828179,1.88264158,84.629,84.591,1.98014607]
[1771620829595,1.88264158,84.629,84.593,1.98014607]
[1771620829897,4.29593878,84.64,84.601,1.98014607]
[1771620830104,11.81376776,84.647,84.601,1.98014607]
[1771620830289,1.88264158,84.648,84.611,1.98014607]
[1771620831501,13.69630112,84.648,84.612,41.36529097]
[1771620831704,13.69630112,84.648,84.613,1.98014607]
[1771620832094,1.88264158,84.647,84.613,1.98014607]
[1771620832283,4.29593878,84.63,84.612,1.98014607]
[1771620832483,1.88264158,84.629,84.606,1.98014607]
[1771620833001,1.88264158,84.639,84.606,1.98014607]
[1771620834509,1.88264158,84.637,84.608,1.98014607]
[1771620835211,4.29593878,84.64,84.608,1.98014607]
[1771620835381,1.88264158,84.661,84.631,1.98014607]
[1771620835585,1.88264158,84.659,84.631,1.98014607]
[1771620836290,13.69392913,84.665,84.631,1.98014607]
[1771620836599,13.69417672,84.663,84.633,1.98014607]
[1771620836800,1.88264158,84.662,84.633,1.98014607]
[1771620838805,1.88264158,84.659,84.633,1.98014607]
[1771620839393,1.88264158,84.659,84.635,1.98014607]
[1771620840092,1.88264158,84.659,84.634,11.81558239]
[1771620840293,1.88264158,84.649,84.621,11.81729935]
[1771620840508,1.88264158,84.639,84.621,11.81729935]
[1771620840905,1.88264158,84.639,84.616,1.98014607]
[1771620841815,1.88264158,84.639,84.618,1.98014607]
[1771620843406,1.88264158,84.639,84.612,1.98014607]
[1771620843586,4.29593878,84.63,84.603,1.98014607]
[1771620843790,1.88264158,84.629,84.603,1.98014607]
[1771620844115,4.29593878,84.63,84.603,1.98014607]
[1771620844116,1.88264158,84.627,84.603,1.98014607]
[1771620844914,1.88264158,84.627,84.604,11.81977211]
[1771620847210,1.88264158,84.627,84.604,13.75766995]
[1771620850208,4.29593878,84.64,84.605,1.88905527]
[1771620850408,1.8707587,84.657,84.621,1.88905527]
[1771620850913,6.16669748,84.65,84.623,1.88905527]
[1771620851411,1.8707587,84.649,84.623,1.88905527]
[1771620851917,11.81149903,84.664,84.631,1.88905527]
[1771620853216,1.8707587,84.664,84.633,1.88905527]
[1771620854316,1.8707587,84.664,84.63,4.29593878]
[1771620854317,1.8707587,84.662,84.635,1.88905527]
[1771620855512,1.8707587,84.659,84.634,11.81558239]
[1771620856314,1.8707587,84.659,84.635,1.88905527]
[1771620856625,1.8707587,84.659,84.636,13.70435845]
[1771620857128,1.8707587,84.659,84.637,1.88905527]
[1771620859118,1.8707587,84.668,84.639,1.88905527]
[1771620859419,6.16669748,84.68,84.641,1.88905527]
[1771620859619,13.67908593,84.686,84.651,1.88905527]
[1771620859823,1.8707587,84.685,84.651,1.88905527]
[1771620861335,1.8707587,84.685,84.653,1.88905527]
[1771620861716,1.8707587,84.699,84.661,1.88905527]
[1771620862013,1.8707587,84.697,84.661,1.88905527]
[1771620862409,1.8707587,84.689,84.661,1.88905527]
[1771620862738,1.8707587,84.689,84.652,41.34574493]
[1771620862739,1.8707587,84.689,84.653,1.88905527]
[1771620863526,1.8707587,84.687,84.655,1.88905527]
[1771620865213,4.29593878,84.69,84.655,1.88905527]
[1771620865533,11.80756265,84.692,84.661,1.88905527]
[1771620865733,1.8707587,84.692,84.663,1.88905527]
[1771620866026,1.8707587,84.689,84.663,1.88905527]
[1771620869036,11.80766068,84.691,84.664,11.81139563]
[1771620869331,11.80766068,84.691,84.665,1.88905527]
[1771620869529,1.8707587,84.69,84.665,1.88905527]
[1771620871537,11.80790893,84.689,84.666,11.81111662]
[1771620871836,11.80790893,84.689,84.667,1.88905527]
[1771620872414,1.8707587,84.69,84.667,1.88905527]
[1771620872641,11.80615608,84.702,84.67,4.29593878]
[1771620872815,11.80615608,84.702,84.671,1.88905527]
[1771620873617,11.80386694,84.718,84.69,4.29593878]
[1771620873817,11.80386694,84.718,84.691,1.88905527]
[1771620874631,0.39710427,84.717,84.683,1.88905527]
[1771620876432,11.80386694,84.718,84.691,1.88905527]